bitfinex/quotes_BTCUSD_20250614
["timestamp","ask_amount","ask_price","bid_price","bid_amount"]
[1749882302906,1.28709188,105230.0,105220.0,0.01467911]
[1749882303110,1.28709188,105230.0,105220.0,0.03249009]
[1749882303565,1.28709188,105230.0,105220.0,0.02581098]
[1749882303733,1.28709188,105230.0,105220.0,0.01467911]
[1749882303977,1.28709188,105230.0,105220.0,0.03249009]
[1749882304110,1.28709188,105230.0,105220.0,0.02581098]
[1749882304311,1.28709188,105230.0,105220.0,0.01467911]
[1749882304508,1.28709188,105230.0,105220.0,0.02581098]
[1749882304748,1.3832411,105230.0,105220.0,0.03249009]
[1749882305148,1.3832411,105230.0,105220.0,0.008]
[1749882305929,0.89126556,105230.0,105220.0,0.008]
[1749882306244,1.3832411,105230.0,105220.0,0.008]
[1749882308265,1.24545188,105230.0,105220.0,0.008]
[1749882308476,1.44513188,105230.0,105220.0,0.008]
[1749882309709,1.4656772,105230.0,105220.0,0.008]
[1749882314035,0.97362166,105230.0,105220.0,0.008]
[1749882314439,1.4655972,105230.0,105220.0,0.008]
[1749882314645,1.56174642,105230.0,105220.0,0.008]
[1749882314981,1.36214642,105230.0,105220.0,0.008]
[1749882315386,1.56174642,105230.0,105220.0,0.008]
[1749882316679,1.2659972,105230.0,105220.0,0.008]
[1749882316883,1.4655172,105230.0,105220.0,0.008]
[1749882325128,0.97354166,105230.0,105220.0,0.008]
[1749882325381,1.4655172,105230.0,105220.0,0.008]
[1749882325930,1.4653972,105230.0,105220.0,0.008]
[1749882326127,1.30508364,105230.0,105220.0,0.008]
[1749882326380,1.50440364,105230.0,105220.0,0.008]
[1749882326833,1.50440364,105230.0,105220.0,0.01468331]
[1749882327050,1.0124281,105230.0,105220.0,0.01468331]
[1749882327267,1.50440364,105230.0,105220.0,0.03250549]
[1749882327705,1.52708219,105230.0,105220.0,0.02582218]
[1749882327929,1.52708219,105230.0,105220.0,0.01468331]
[1749882328129,1.52708219,105230.0,105220.0,0.03250549]
[1749882328348,1.52708219,105230.0,105220.0,0.0325055]
[1749882328561,1.52708219,105230.0,105220.0,0.03250556]
[1749882329029,1.52708219,105230.0,105220.0,0.03250558]
[1749882330784,1.52708219,105230.0,105220.0,0.01468334]
[1749882330988,1.52708219,105230.0,105220.0,0.03250558]
[1749882331776,1.52708219,105230.0,105220.0,0.01468334]
[1749882331993,1.52708219,105230.0,105220.0,0.03250493]
[1749882332849,1.52710214,105230.0,105220.0,0.03250493]
[1749882333263,1.52710214,105230.0,105220.0,0.01468316]
[1749882333480,1.52710214,105230.0,105220.0,0.03250493]
[1749882334301,1.52710214,105230.0,105220.0,0.02582177]
[1749882334502,1.52710214,105230.0,105220.0,0.03250493]
[1749882335158,1.52710214,105230.0,105220.0,0.02582255]
[1749882335353,1.52710214,105230.0,105220.0,0.032506]
[1749882335910,1.52710214,105230.0,105220.0,0.008]
[1749882336118,1.52710214,105230.0,105220.0,0.032506]
[1749882336538,1.52710214,105230.0,105220.0,0.03250605]
[1749882336938,1.52710214,105230.0,105220.0,0.02582263]
[1749882337716,1.52710214,105230.0,105220.0,0.03250611]
[1749882337927,1.80086214,105230.0,105220.0,0.01468348]
[1749882338339,1.77812364,105230.0,105220.0,0.01468348]
[1749882338555,2.63283768,105230.0,105220.0,0.03250646]
[1749882338711,2.64807853,105230.0,105220.0,0.008]
[1749882338913,2.67650166,105230.0,105220.0,0.008]
[1749882339277,2.67606166,105230.0,105220.0,0.008]
[1749882339574,2.67606166,105230.0,105220.0,0.005]
[1749882339777,1.98524612,105230.0,105220.0,0.005]
[1749882340042,2.18404612,105230.0,105220.0,0.005]
[1749882340485,0.20910494,105210.0,105200.0,0.0315]
[1749882340687,0.85836048,105210.0,105200.0,0.04932453]
[1749882341740,0.89984048,105210.0,105200.0,0.04932453]
[1749882341948,0.70108048,105210.0,105200.0,0.04932453]
[1749882342158,0.89980048,105210.0,105200.0,0.0365]
[1749882342363,0.89980048,105210.0,105200.0,0.05429634]
[1749882342574,0.89980048,105210.0,105200.0,0.0365]
[1749882342788,0.89980048,105210.0,105200.0,0.05729633]
[1749882343002,0.89980048,105210.0,105200.0,0.06619449]
[1749882343177,0.89980048,105210.0,105200.0,0.04839816]
[1749882343376,0.89980048,105210.0,105200.0,0.06619449]
[1749882343762,0.90879779,105210.0,105200.0,0.06619449]
[1749882343938,0.75159779,105210.0,105200.0,0.04839816]
[1749882344144,0.75159779,105210.0,105200.0,0.06619449]
[1749882344347,0.75159779,105210.0,105200.0,0.04839816]
[1749882344758,0.75159779,105210.0,105200.0,0.06619449]
[1749882345163,0.75159779,105210.0,105200.0,0.06619453]
[1749882345459,0.75159779,105210.0,105200.0,0.05729633]
[1749882345651,0.75159779,105210.0,105200.0,0.0395]
[1749882345813,0.75159779,105210.0,105200.0,0.05729207]
[1749882346015,0.75159779,105210.0,105200.0,0.0661881]
[1749882346924,0.75159779,105210.0,105200.0,0.04839603]
[1749882347150,0.75159779,105210.0,105200.0,0.0661881]
[1749882347468,0.75159779,105210.0,105200.0,0.04839603]
[1749882347679,0.75159779,105210.0,105200.0,0.0661881]
[1749882348333,0.75159779,105210.0,105200.0,0.05729207]
[1749882350526,0.25962225,105210.0,105200.0,0.05729207]
[1749882350727,0.75159779,105210.0,105200.0,0.05729425]
[1749882352777,0.75159779,105210.0,105200.0,0.0572948]
[1749882354284,0.75159779,105210.0,105200.0,0.0395]
[1749882354487,0.75159779,105210.0,105200.0,0.0572948]
[1749882355041,0.75159779,105210.0,105200.0,0.0395]
[1749882355245,0.25962225,105210.0,105200.0,0.0572948]
[1749882355448,0.75159779,105210.0,105200.0,0.0572948]
[1749882356453,0.75159779,105210.0,105200.0,0.05729479]
[1749882357089,0.75159779,105210.0,105200.0,0.0572948]
[1749882357301,0.75159779,105210.0,105200.0,0.0395]
[1749882357509,0.75159779,105210.0,105200.0,0.0572948]
[1749882357714,0.75159779,105210.0,105200.0,0.05729964]
[1749882358119,0.75159779,105210.0,105200.0,0.09229964]
[1749882358334,0.25962225,105210.0,105200.0,0.0745]
[1749882358529,0.75159779,105210.0,105200.0,0.09229964]
[1749882358948,0.75159779,105210.0,105200.0,0.0745]
[1749882359152,0.75159779,105210.0,105200.0,0.09229964]
[1749882360353,0.75159779,105210.0,105200.0,0.09229963]
[1749882360923,0.75159779,105210.0,105200.0,0.09229962]
[1749882361170,0.75159779,105210.0,105200.0,0.09229963]
[1749882361541,0.21810225,105210.0,105200.0,0.28241369]
[1749882361751,0.75159779,105210.0,105200.0,0.31448503]
[1749882361949,0.75159779,105210.0,105200.0,0.32399073]
[1749882362169,0.75159779,105210.0,105200.0,0.2919404]
[1749882362368,0.76110258,105210.0,105200.0,0.31095121]
[1749882362574,0.76110258,105210.0,105200.0,0.31095117]
[1749882362773,0.76110258,105210.0,105200.0,0.29313071]
[1749882362931,0.71007824,105210.0,105200.0,0.31095112]
[1749882363197,0.71007824,105210.0,105200.0,0.29313071]
[1749882363397,0.75159824,105210.0,105200.0,0.31095112]
[1749882363844,0.71007824,105210.0,105200.0,0.31095112]
[1749882364053,0.75159824,105210.0,105200.0,0.31095112]
[1749882364252,0.84159824,105210.0,105200.0,0.29313071]
[1749882364788,0.84159824,105210.0,105200.0,0.31095112]
[1749882365190,0.84159824,105210.0,105200.0,0.30144569]
[1749882366209,0.83209363,105210.0,105200.0,0.30144569]
[1749882368056,0.83209363,105210.0,105200.0,0.29194017]
[1749882368259,0.83209363,105210.0,105200.0,0.29194027]
[1749882368472,0.83209363,105210.0,105200.0,0.27411976]
[1749882368641,0.83209363,105210.0,105200.0,0.29194029]
[1749882369924,0.82258884,105210.0,105200.0,0.29194029]
[1749882370826,0.82258884,105210.0,105200.0,0.29193964]
[1749882371243,0.82258884,105210.0,105200.0,0.30144525]
[1749882371648,0.82258884,105210.0,105200.0,0.30144798]
[1749882371986,0.82258884,105210.0,105200.0,0.28362537]
[1749882372416,0.82258884,105210.0,105200.0,0.30144798]
[1749882373439,0.78106884,105210.0,105200.0,0.3109535]
[1749882373650,0.97942884,105210.0,105200.0,0.3109535]
[1749882374057,0.97942884,105210.0,105200.0,0.31095349]
[1749882374511,0.97942884,105210.0,105200.0,0.31095348]
[1749882374845,0.08537244,105210.0,105200.0,1.54902358]
[1749882375057,0.06048101,105240.0,105230.0,0.23246276]
[1749882375234,0.01916083,105240.0,105230.0,0.25978215]
[1749882375461,0.01916083,105240.0,105230.0,0.27878704]
[1749882375706,0.06048083,105240.0,105230.0,0.34575094]
[1749882375913,0.06998264,105240.0,105230.0,0.3429297]
[1749882376127,0.02866255,105240.0,105230.0,0.83490524]
[1749882376332,0.06998255,105240.0,105230.0,0.834953]
[1749882376534,0.06998255,105240.0,105230.0,0.81713668]
[1749882376737,0.36998255,105240.0,105230.0,0.83495301]
[1749882376937,0.32866255,105240.0,105230.0,0.84445546]
[1749882377095,0.36048092,105240.0,105230.0,0.84445492]
[1749882377295,0.36048092,105240.0,105230.0,0.33466305]
[1749882377512,0.36548092,105240.0,105230.0,0.35247934]
[1749882377871,0.36548092,105240.0,105230.0,0.2943875]
[1749882378072,0.36544092,105240.0,105230.0,0.29378974]
[1749882378279,0.36544092,105240.0,105230.0,0.29319197]
[1749882378479,0.36544092,105240.0,105230.0,0.29263558]
[1749882378945,0.37494273,105240.0,105230.0,0.27363077]
[1749882379146,0.33366273,105240.0,105230.0,0.27363077]
[1749882379349,0.33366264,105240.0,105230.0,0.27363079]
[1749882379800,0.32416092,105240.0,105230.0,0.27363079]
[1749882380020,0.32416092,105240.0,105230.0,0.28313324]
[1749882380240,0.38444454,105240.0,105230.0,0.2641287]
[1749882380445,0.38444454,105240.0,105230.0,0.26411969]
[1749882380650,1.00979768,105240.0,105230.0,0.05067418]
[1749882380858,0.57274099,105240.0,105230.0,0.22300762]
[1749882381083,0.57274099,105240.0,105230.0,0.25023779]
[1749882381084,0.55548326,105240.0,105230.0,0.25023779]
[1749882381314,0.71248326,105240.0,105230.0,0.23251061]
[1749882381543,0.52370535,105240.0,105230.0,0.26924243]
[1749882381756,0.30515784,105240.0,105230.0,0.80733819]
[1749882381971,0.63920065,105240.0,105230.0,0.80733819]
[1749882382173,0.33920065,105240.0,105230.0,0.37692773]
[1749882382379,0.34870237,105240.0,105230.0,0.37028063]
[1749882382582,0.34870237,105240.0,105230.0,0.37692754]
[1749882382790,0.30742237,105240.0,105230.0,0.37692754]
[1749882382990,0.30742237,105240.0,105230.0,0.37028049]
[1749882383211,0.34870237,105240.0,105230.0,0.28539083]
[1749882383382,0.35820427,105240.0,105230.0,0.26766537]
[1749882383601,0.35320427,105240.0,105230.0,0.28539087]
[1749882383749,0.31192427,105240.0,105230.0,0.28539088]
[1749882383950,0.35320427,105240.0,105230.0,0.27066538]
[1749882384148,0.31192427,105240.0,105230.0,0.26401832]
[1749882384375,0.35320427,105240.0,105230.0,0.28839089]
[1749882384580,0.35320427,105240.0,105230.0,0.27624147]
[1749882384750,0.35320427,105240.0,105230.0,0.28288855]
[1749882384751,0.31192427,105240.0,105230.0,0.28288855]
[1749882384950,0.36270636,105240.0,105230.0,0.25851614]
[1749882385181,0.50196689,105240.0,105230.0,0.0738233]
[1749882385343,0.52424363,105240.0,105230.0,0.06432038]
[1749882385545,0.52424363,105240.0,105230.0,0.05767368]
[1749882385804,0.48296363,105240.0,105230.0,0.05767368]
[1749882386001,0.52424363,105240.0,105230.0,0.05767368]
[1749882386196,0.52424363,105240.0,105230.0,0.0576664]
[1749882387383,0.52424363,105240.0,105230.0,0.03994776]
[1749882387865,0.52420363,105240.0,105230.0,0.03994776]
[1749882388707,0.20920363,105240.0,105230.0,0.03994776]
[1749882389085,0.52420363,105240.0,105230.0,0.07494776]
[1749882390080,0.48292363,105240.0,105230.0,0.07494776]
[1749882390288,0.52420363,105240.0,105230.0,0.07494776]
[1749882391287,0.20920363,105240.0,105230.0,0.07494776]
[1749882391497,0.52420363,105240.0,105230.0,0.07494776]
[1749882391696,0.82420363,105240.0,105230.0,0.07494776]
[1749882391951,0.20920363,105240.0,105230.0,0.07494776]
[1749882392114,0.52420363,105240.0,105230.0,0.07494776]
[1749882392764,0.20920363,105240.0,105230.0,0.07494776]
[1749882392985,0.52420363,105240.0,105230.0,0.07494776]
[1749882393434,0.52420363,105240.0,105230.0,0.09932656]
[1749882394312,0.52420363,105240.0,105230.0,0.26500762]
[1749882394531,0.52420363,105240.0,105230.0,0.09932656]
[1749882394753,0.20920363,105240.0,105230.0,0.09932656]
[1749882394987,0.52420363,105240.0,105230.0,0.09932656]
[1749882396123,0.52420363,105240.0,105230.0,0.32403043]
[1749882396341,0.52420363,105240.0,105230.0,0.09932656]
[1749882396342,0.51470173,105240.0,105230.0,0.09932656]
[1749882396557,0.51470173,105240.0,105230.0,0.0926778]
[1749882396774,0.60470173,105240.0,105230.0,0.08159652]
[1749882397421,1.04175842,105240.0,105230.0,0.08159652]
[1749882397624,1.04175842,105240.0,105230.0,0.0926778]
[1749882397833,1.04175842,105240.0,105230.0,0.07494776]
[1749882398041,1.04175842,105240.0,105230.0,0.09932656]
[1749882398924,1.04175842,105240.0,105230.0,0.07494776]
[1749882399137,1.04175842,105240.0,105230.0,0.09932687]
[1749882399341,1.0965005,105240.0,105230.0,0.09932693]
[1749882399539,1.0965005,105240.0,105230.0,0.09932694]
[1749882399752,1.0965005,105240.0,105230.0,0.08159667]
[1749882399962,1.0965005,105240.0,105230.0,0.09932711]
[1749882400989,1.0965005,105240.0,105230.0,0.09935911]
[1749882401199,1.0965005,105240.0,105230.0,0.09276352]
[1749882401619,1.0965005,105240.0,105230.0,0.07494776]
[1749882401826,1.0965005,105240.0,105230.0,0.09943929]
[1749882402043,1.0965005,105240.0,105230.0,0.09275978]
[1749882402242,1.0965005,105240.0,105230.0,0.08162727]
[1749882402484,1.0965005,105240.0,105230.0,0.09943929]
[1749882402860,1.0965005,105240.0,105230.0,0.08162727]
[1749882403070,1.0965005,105240.0,105230.0,0.09943929]
[1749882403421,1.0965005,105240.0,105230.0,0.08162727]
[1749882403620,1.0965005,105240.0,105230.0,0.07494776]
[1749882403824,1.0965005,105240.0,105230.0,0.09943929]
[1749882404373,1.0965005,105240.0,105230.0,0.07494776]
[1749882404581,1.0965005,105240.0,105230.0,0.09275978]
[1749882404811,1.0965005,105240.0,105230.0,0.08162727]
[1749882405159,1.0965005,105240.0,105230.0,0.09943929]
[1749882405357,1.0965005,105240.0,105230.0,0.07494776]
[1749882405642,1.0965005,105240.0,105230.0,0.09943929]
[1749882405899,1.19264972,105240.0,105230.0,0.09275981]
[1749882406105,1.58829927,105240.0,105230.0,0.09943933]
[1749882406327,1.58829927,105240.0,105230.0,0.09944041]
[1749882406541,1.58829927,105240.0,105230.0,0.09276089]
[1749882406747,1.58829927,105240.0,105230.0,0.09944114]
[1749882406961,1.58829927,105240.0,105230.0,0.07494776]
[1749882407168,1.58829927,105240.0,105230.0,0.08162777]
[1749882407378,1.62140613,105240.0,105230.0,0.09944114]
[1749882407586,1.0965005,105240.0,105230.0,0.07494776]
[1749882407789,1.0965005,105240.0,105230.0,0.0994424]
[1749882407996,1.0965005,105240.0,105230.0,0.08162812]
[1749882408205,1.0965005,105240.0,105230.0,0.09944243]
[1749882408414,0.60470173,105240.0,105230.0,0.09944243]
[1749882408625,1.0965005,105240.0,105230.0,0.09944243]
[1749882408824,1.0965005,105240.0,105230.0,0.08162812]
[1749882409033,1.0965005,105240.0,105230.0,0.09944243]
[1749882409237,1.0965005,105240.0,105230.0,0.08162812]
[1749882409446,1.0965005,105240.0,105230.0,0.09944242]
[1749882411035,1.0965005,105240.0,105230.0,0.09942606]
[1749882411655,1.0965005,105240.0,105230.0,0.08162198]
[1749882411858,1.0965005,105240.0,105230.0,0.0927457]
[1749882412077,1.0965005,105240.0,105230.0,0.09941992]
[1749882412722,1.0965005,105240.0,105230.0,0.0927457]
[1749882412925,0.60470173,105240.0,105230.0,0.09941992]
[1749882413131,1.0965005,105240.0,105230.0,0.08162198]
[1749882413342,1.0965005,105240.0,105230.0,0.0927457]
[1749882413564,1.0965005,105240.0,105230.0,0.07494776]
[1749882413766,1.0965005,105240.0,105230.0,0.09941992]
[1749882414196,1.0965005,105240.0,105230.0,0.08162198]
[1749882414370,1.0965005,105240.0,105230.0,0.09941992]
[1749882414508,1.0965005,105240.0,105230.0,0.0927457]
[1749882414715,1.0965005,105240.0,105230.0,0.09941992]
[1749882415533,1.0965005,105240.0,105230.0,0.0927457]
[1749882415731,1.0965005,105240.0,105230.0,0.09274374]
[1749882415976,1.0965005,105240.0,105230.0,0.09274359]
[1749882416200,1.0965005,105240.0,105230.0,0.08162117]
[1749882416654,1.2534205,105240.0,105230.0,0.09274354]
[1749882417330,0.76162173,105240.0,105230.0,0.09941694]
[1749882417570,1.2534205,105240.0,105230.0,0.07494776]
[1749882418023,1.0552205,105240.0,105230.0,0.09274353]
[1749882418262,1.2534205,105240.0,105230.0,0.09941694]
[1749882418497,1.2534205,105240.0,105230.0,0.07494776]
[1749882418741,1.2534205,105240.0,105230.0,0.09941694]
[1749882418979,1.2534205,105240.0,105230.0,0.09274353]
[1749882419218,1.2534205,105240.0,105230.0,0.09941694]
[1749882419667,1.2534205,105240.0,105230.0,0.08162117]
[1749882419921,1.2534205,105240.0,105230.0,0.09941693]
[1749882420414,0.56342173,105240.0,105230.0,0.09941693]
[1749882420641,1.2534205,105240.0,105230.0,0.09941693]
[1749882420864,1.2534205,105240.0,105230.0,0.08162117]
[1749882421086,1.2534205,105240.0,105230.0,0.09274352]
[1749882421320,1.2534205,105240.0,105230.0,0.09941693]
[1749882422813,1.2534205,105240.0,105230.0,0.0816217]
[1749882423017,1.2534205,105240.0,105230.0,0.09941888]
[1749882423226,1.2534205,105240.0,105230.0,0.0816217]
[1749882423428,1.2534205,105240.0,105230.0,0.09942362]
[1749882424681,0.60470173,105240.0,105230.0,0.13122472]
[1749882424880,1.0965005,105240.0,105230.0,0.08162274]
[1749882424995,1.08699841,105240.0,105230.0,0.09942263]
[1749882425200,1.08699841,105240.0,105230.0,0.08162267]
[1749882425406,1.08699841,105240.0,105230.0,0.09942245]
[1749882425620,1.04571841,105240.0,105230.0,0.09942259]
[1749882425826,1.24387841,105240.0,105230.0,0.09942295]
[1749882426029,1.24387841,105240.0,105230.0,0.09942296]
[1749882426277,1.73567718,105240.0,105230.0,0.08162281]
[1749882426476,1.73567718,105240.0,105230.0,0.09942337]
[1749882426685,1.8318264,105240.0,105230.0,0.09942375]
[1749882426891,1.8318264,105240.0,105230.0,0.09942391]
[1749882427112,1.8318264,105240.0,105230.0,0.08292391]
[1749882427262,1.92806816,105240.0,105230.0,0.06652468]
[1749882427465,1.92806816,105240.0,105230.0,0.0665247]
[1749882427674,1.92806816,105240.0,105230.0,0.066525]
[1749882427876,1.92806816,105240.0,105230.0,0.06652506]
[1749882428070,1.92806816,105240.0,105230.0,0.04872333]
[1749882428400,1.92806816,105240.0,105230.0,0.05984949]
[1749882428553,1.92806816,105240.0,105230.0,0.06652514]
[1749882428779,1.92806816,105240.0,105230.0,0.06252514]
[1749882429414,1.95661016,105240.0,105230.0,0.06252514]
[1749882429820,1.95661016,105240.0,105230.0,0.05284949]
[1749882430229,1.96161016,105240.0,105230.0,0.05284949]
[1749882430695,1.96161016,105240.0,105230.0,0.03504776]
[1749882431603,1.96161016,105240.0,105230.0,0.0528488]
[1749882433608,1.96161016,105240.0,105230.0,0.03504776]
[1749882435187,1.96161016,105240.0,105230.0,0.05184776]
[1749882435431,1.98432811,105240.0,105230.0,0.05184776]
[1749882435739,1.96161016,105240.0,105230.0,0.05184776]
[1749882437153,1.96161016,105240.0,105230.0,0.06934776]
[1749882441297,1.96161016,105240.0,105230.0,0.08714963]
[1749882443634,1.96161016,105240.0,105230.0,0.06934776]
[1749882443899,1.96161016,105240.0,105230.0,0.08714963]
[1749882444634,1.96161016,105240.0,105230.0,0.06934776]
[1749882444883,1.96161016,105240.0,105230.0,0.08714963]
[1749882446240,1.96161016,105240.0,105230.0,0.06934776]
[1749882446664,1.96161016,105240.0,105230.0,0.0871517]
[1749882447649,1.96161016,105240.0,105230.0,0.06934776]
[1749882447901,1.96161016,105240.0,105230.0,0.0871517]
[1749882448430,1.96161016,105240.0,105230.0,0.06934776]
[1749882448675,1.96161016,105240.0,105230.0,0.0871517]
[1749882449181,1.96161016,105240.0,105230.0,0.06934776]
[1749882449669,1.96161016,105240.0,105230.0,0.0871517]
[1749882449883,1.96161016,105240.0,105230.0,0.06934776]
[1749882450096,1.96161016,105240.0,105230.0,0.0871517]
[1749882450558,1.96161016,105240.0,105230.0,0.06934776]
[1749882451042,1.96161016,105240.0,105230.0,0.0871517]
[1749882451567,1.96161016,105240.0,105230.0,0.06934776]
[1749882451767,1.96161016,105240.0,105230.0,0.0871517]
[1749882452700,1.98432729,105240.0,105230.0,0.09383456]
[1749882453187,1.98432729,105240.0,105230.0,0.09385158]
[1749882453858,1.98432729,105240.0,105230.0,0.07603062]
[1749882454095,1.98432729,105240.0,105230.0,0.09385156]
[1749882454299,1.98432729,105240.0,105230.0,0.0760306]
[1749882454472,1.88817807,105240.0,105230.0,0.09385159]
[1749882454756,1.88817807,105240.0,105230.0,0.09385175]
[1749882454951,1.88817807,105240.0,105230.0,0.07603066]
[1749882455185,1.88817807,105240.0,105230.0,0.07603067]
[1749882455453,1.88817807,105240.0,105230.0,0.09385176]
[1749882456352,1.88817807,105240.0,105230.0,0.07603067]
[1749882456591,1.88817807,105240.0,105230.0,0.09385176]
[1749882456781,1.88817807,105240.0,105230.0,0.07603067]
[1749882457008,1.79817807,105240.0,105230.0,0.09385176]
[1749882457209,1.79817807,105240.0,105230.0,0.08716885]
[1749882457409,1.79817807,105240.0,105230.0,0.09385176]
[1749882457613,1.79817807,105240.0,105230.0,0.07603067]
[1749882457991,1.79817807,105240.0,105230.0,0.09385176]
[1749882458443,1.79817807,105240.0,105230.0,0.07603067]
[1749882458646,1.79817807,105240.0,105230.0,0.09385176]
[1749882458828,2.09817807,105240.0,105230.0,0.09385176]
[1749882460372,2.09797807,105240.0,105230.0,0.09385167]
[1749882460698,2.09797807,105240.0,105230.0,0.07603064]
[1749882460876,2.09797807,105240.0,105230.0,0.08716938]
[1749882461109,2.09797807,105240.0,105230.0,0.09385249]
[1749882461316,1.90001807,105240.0,105230.0,0.09385249]
[1749882461507,2.07526094,105240.0,105230.0,0.08716899]
[1749882461778,2.07526094,105240.0,105230.0,0.0938518]
[1749882462196,2.07526094,105240.0,105230.0,0.09385143]
[1749882462373,2.07526094,105240.0,105230.0,0.09385144]
[1749882462968,2.07526094,105240.0,105230.0,0.09384779]
[1749882463125,2.07526094,105240.0,105230.0,0.07602693]
[1749882463353,2.07526094,105240.0,105230.0,0.09383806]
[1749882463552,2.07526094,105240.0,105230.0,0.0871589]
[1749882463756,2.07526094,105240.0,105230.0,0.06934776]
[1749882463963,2.07526094,105240.0,105230.0,0.09383807]
[1749882464975,2.07526094,105240.0,105230.0,0.07602693]
[1749882465157,2.07526094,105240.0,105230.0,0.0871589]
[1749882465361,2.07526094,105240.0,105230.0,0.09383807]
[1749882466132,2.07526094,105240.0,105230.0,0.09383764]
[1749882466334,2.07526094,105240.0,105230.0,0.0871589]
[1749882466564,2.07526094,105240.0,105230.0,0.09383648]
[1749882466797,2.07526094,105240.0,105230.0,0.0760265]
[1749882467009,1.87730094,105240.0,105230.0,0.09383648]
[1749882467191,2.07522094,105240.0,105230.0,0.09383648]
[1749882467515,2.07522094,105240.0,105230.0,0.09383647]
[1749882468341,2.07522094,105240.0,105230.0,0.08715773]
[1749882468544,0.72374164,105240.0,105230.0,0.09383647]
[1749882468745,1.45867841,105240.0,105230.0,0.08715771]
[1749882468953,1.45867841,105240.0,105230.0,0.09383576]
[1749882469103,1.45867841,105240.0,105230.0,0.0760263]
[1749882469312,1.45867841,105240.0,105230.0,0.09383576]
[1749882469856,1.45867841,105240.0,105230.0,0.0760263]
[1749882470031,1.45867841,105240.0,105230.0,0.09383576]
[1749882470239,1.45867841,105240.0,105230.0,0.0760263]
[1749882470439,1.45867841,105240.0,105230.0,0.09383411]
[1749882470957,1.45867841,105240.0,105230.0,0.0760263]
[1749882471152,1.45867841,105240.0,105230.0,0.0938302]
[1749882471356,1.45867841,105240.0,105230.0,0.09382812]
[1749882472427,1.45867841,105240.0,105230.0,0.07602422]
[1749882472626,1.45867841,105240.0,105230.0,0.09382812]
[1749882473243,1.45867841,105240.0,105230.0,0.08715166]
[1749882473458,1.45867841,105240.0,105230.0,0.09382812]
[1749882473909,1.41751841,105240.0,105230.0,0.09382812]
[1749882474070,1.45867841,105240.0,105230.0,0.09382812]
[1749882475201,1.45867841,105240.0,105230.0,0.07602421]
[1749882475520,1.45867841,105240.0,105230.0,0.06934776]
[1749882475727,1.45867841,105240.0,105230.0,0.09382809]
[1749882475938,1.45867841,105240.0,105230.0,0.07602421]
[1749882476154,1.45867841,105240.0,105230.0,0.08715166]
[1749882476352,1.45867841,105240.0,105230.0,0.07602422]
[1749882476702,1.45867841,105240.0,105230.0,0.09382812]
[1749882476931,1.45867841,105240.0,105230.0,0.08705166]
[1749882477339,1.45867841,105240.0,105230.0,0.09372959]
[1749882478407,1.45867841,105240.0,105230.0,0.07592462]
[1749882478599,1.45867841,105240.0,105230.0,0.09372959]
[1749882480564,1.45867841,105240.0,105230.0,0.07592462]
[1749882480739,1.45867841,105240.0,105230.0,0.09372959]
[1749882480939,1.45867841,105240.0,105230.0,0.08705273]
[1749882481172,1.45867841,105240.0,105230.0,0.09372959]
[1749882481580,1.45867841,105240.0,105230.0,0.08705273]
[1749882481842,1.45867841,105240.0,105230.0,0.09372959]
[1749882483098,1.55482763,105240.0,105230.0,0.09372959]
[1749882484418,1.55482763,105240.0,105230.0,0.07592462]
[1749882484602,1.55482763,105240.0,105230.0,0.06924776]
[1749882484863,1.55482763,105240.0,105230.0,0.07592808]
[1749882485046,1.45867841,105240.0,105230.0,0.09374228]
[1749882485596,1.45867841,105240.0,105230.0,0.11155648]
[1749882485831,1.45867841,105240.0,105230.0,0.10487616]
[1749882486208,1.45867841,105240.0,105230.0,0.08706196]
[1749882486363,1.45867841,105240.0,105230.0,0.11155648]
[1749882486830,1.45867841,105240.0,105230.0,0.09374228]
[1749882487043,1.45867841,105240.0,105230.0,0.11155648]
[1749882487256,1.45867841,105240.0,105230.0,0.09374228]
[1749882487475,1.45867841,105240.0,105230.0,0.08706196]
[1749882487684,1.45867841,105240.0,105230.0,0.11155648]
[1749882487890,1.45867841,105240.0,105230.0,0.08706196]
[1749882488096,1.45867841,105240.0,105230.0,0.11155648]
[1749882490308,1.45867841,105240.0,105230.0,0.09374228]
[1749882490456,1.45867841,105240.0,105230.0,0.11155648]
[1749882490663,1.45867841,105240.0,105230.0,0.09374228]
[1749882490909,1.45867841,105240.0,105230.0,0.11155648]
[1749882491062,1.45867841,105240.0,105230.0,0.10487616]
[1749882491711,1.45867841,105240.0,105230.0,0.11155648]
[1749882492680,2.0466264,105240.0,105230.0,0.11155648]
[1749882493111,2.0466264,105240.0,105230.0,0.11156273]
[1749882493614,2.0466264,105240.0,105230.0,0.09374228]
[1749882493760,2.0466264,105240.0,105230.0,0.11156273]
[1749882493970,2.0466264,105240.0,105230.0,0.10488241]
[1749882494207,2.0466264,105240.0,105230.0,0.11156508]
[1749882494567,1.06302886,105240.0,105230.0,0.11156508]
[1749882494764,1.95047718,105240.0,105230.0,0.11156436]
[1749882495268,1.95047718,105240.0,105230.0,0.08706196]
[1749882495678,1.95047718,105240.0,105230.0,0.11156436]
[1749882496513,1.95047718,105240.0,105230.0,0.09374443]
[1749882496711,1.95047718,105240.0,105230.0,0.11156436]
[1749882496996,1.45867841,105240.0,105230.0,0.09374443]
[1749882497196,1.45867841,105240.0,105230.0,0.11156436]
[1749882497918,1.45867841,105240.0,105230.0,0.10488189]
[1749882498119,1.45867841,105240.0,105230.0,0.11156436]
[1749882498580,1.48226187,105240.0,105230.0,0.11156436]
[1749882500980,1.45867841,105240.0,105230.0,0.11156436]
[1749882501461,1.45867841,105240.0,105230.0,0.08706196]
[1749882501670,1.45867841,105240.0,105230.0,0.09374452]
[1749882501877,1.45867841,105240.0,105230.0,0.1115647]
[1749882506228,1.45867841,105240.0,105230.0,0.10488214]
[1749882506466,1.45867841,105240.0,105230.0,0.08706196]
[1749882506665,1.45867841,105240.0,105230.0,0.1115647]
[1749882506937,1.45867841,105240.0,105230.0,0.10488214]
[1749882507173,1.45867841,105240.0,105230.0,0.1115647]
[1749882507608,1.45867841,105240.0,105230.0,0.11156497]
[1749882507994,1.45867841,105240.0,105230.0,0.1115657]
[1749882508634,1.45867841,105240.0,105230.0,0.11156571]
[1749882509818,1.45867841,105240.0,105230.0,0.0937448]
[1749882510063,1.45867841,105240.0,105230.0,0.08706196]
[1749882510268,1.45867841,105240.0,105230.0,0.11156571]
[1749882510487,1.45867841,105240.0,105230.0,0.08706196]
[1749882510689,1.42373065,105240.0,105230.0,0.05879704]
[1749882510889,1.42373065,105240.0,105230.0,0.07661795]
[1749882511101,1.42373065,105240.0,105230.0,0.06993511]
[1749882511306,1.2179529,105240.0,105230.0,0.06993511]
[1749882511518,1.4079947,105240.0,105230.0,0.07661795]
[1749882512131,1.15352057,105240.0,105230.0,0.07661795]
[1749882512557,1.15328057,105240.0,105230.0,0.07661795]
[1749882513540,0.95560057,105240.0,105230.0,0.07661795]
[1749882513718,1.15324057,105240.0,105230.0,0.07661795]
[1749882514197,1.15324057,105240.0,105230.0,0.05879704]
[1749882514411,1.15324057,105240.0,105230.0,0.0521142]
[1749882514620,1.15324057,105240.0,105230.0,0.07661795]
[1749882515156,1.15324057,105240.0,105230.0,0.06993511]